{"text_format":"1","workbook":"xlsx","n_sheets":3,"sheets":["DADOS","1º SEMESTRE","GRÁFICOS"],"not_rendered":{"charts":3,"images":0,"macros":0,"external_links":0,"defined_names":1,"comments":0,"pivot_tables":0},"unopened":[],"bounds":{"document_bytes":16777216,"sheet_cells":100000,"rows_first":2000,"rows_last":500,"rows_between":2000,"halvings":0,"cell_chars":16384,"cell_head_chars":4096},"cells_cut":0,"cells_raw":0,"read":"whole","date_system":"1900"}

{"sheet":"DADOS","index":0,"n_rows":58,"n_cols":9,"rows_kept":58,"cut":false,"hidden":false,"merged":[[12,1,12,5],[0,0,0,8],[1,0,1,8],[2,0,2,8],[3,1,3,8],[4,1,4,8],[6,1,6,5],[7,1,7,5],[8,1,8,5],[9,1,9,5],[10,1,10,5],[11,1,11,5],[5,6,5,8],[24,1,24,5],[13,1,13,5],[14,1,14,5],[15,1,15,5],[16,1,16,5],[17,1,17,5],[18,1,18,5],[19,1,19,5],[20,1,20,5],[21,1,21,5],[22,1,22,5],[23,1,23,5],[47,1,47,5],[36,1,36,5],[25,1,25,5],[26,1,26,5],[27,1,27,5],[28,1,28,5],[29,1,29,5],[30,1,30,5],[31,1,31,5],[32,1,32,5],[33,1,33,5],[34,1,34,5],[35,1,35,5],[42,1,42,5],[43,1,43,5],[44,1,44,5],[45,1,45,5],[46,1,46,5],[37,1,37,5],[38,1,38,5],[39,1,39,5],[40,1,40,5],[41,1,41,5],[54,1,54,5],[55,1,55,5],[56,1,56,5],[57,1,57,5],[48,1,48,5],[49,1,49,5],[50,1,50,5],[51,1,51,5],[52,1,52,5],[53,1,53,5],[67,1,67,5],[68,1,68,5],[69,1,69,5],[70,1,70,5],[58,0,58,8],[61,1,61,5],[62,1,62,5],[63,1,63,5],[64,1,64,5],[65,1,65,5],[66,1,66,5],[59,1,59,5],[60,1,60,5]]}
["ESTADO DE MATO GROSSO DO SUL"]
["PREFEITURA MUNICIPAL DE CAMPO GRANDE"]
["SECRETARIA MUNICIPAL DE EDUCAÇÃO"]
["ESCOLA:"]
["PROFESSOR:"]
["TURMA",null,"PERÍODO "]
["N. ","NOME",null,null,null,null,"DATA DE NASCIMENTO","IDADE","CASO TENHA LAUDO REGISTRE."]
[{"$f":"ROW(B8)-7","v":1},null,null,null,null,null,null,{"$f":"IF(G8=\"\",\"\",YEAR(TODAY())-YEAR(G8))","v":""}]
[{"$f":"ROW(B9)-7","v":2},null,null,null,null,null,null,{"$f":"IF(G9=\"\",\"\",YEAR(TODAY())-YEAR(G9))","v":""}]
[3,null,null,null,null,null,null,""]
[4,null,null,null,null,null,null,""]
[5,null,null,null,null,null,null,""]
[6,null,null,null,null,null,null,""]
[7,null,null,null,null,null,null,""]
[8,null,null,null,null,null,null,""]
[9,null,null,null,null,null,null,""]
[10,null,null,null,null,null,null,""]
[11,null,null,null,null,null,null,""]
[12,null,null,null,null,null,null,""]
[13,null,null,null,null,null,null,""]
[14,null,null,null,null,null,null,""]
[15,null,null,null,null,null,null,""]
[16,null,null,null,null,null,null,""]
[17,null,null,null,null,null,null,""]
[18,null,null,null,null,null,null,""]
[19,null,null,null,null,null,null,""]
[20,null,null,null,null,null,null,""]
[21,null,null,null,null,null,null,""]
[22,null,null,null,null,null,null,""]
[23,null,null,null,null,null,null,""]
[24,null,null,null,null,null,null,""]
[25,null,null,null,null,null,null,""]
[26,null,null,null,null,null,null,""]
[27,null,null,null,null,null,null,""]
[28,null,null,null,null,null,null,""]
[29,null,null,null,null,null,null,""]
[30,null,null,null,null,null,null,""]
[31,null,null,null,null,null,null,""]
[32,null,null,null,null,null,null,""]
[33,null,null,null,null,null,null,""]
[34,null,null,null,null,null,null,""]
[35,null,null,null,null,null,null,""]
[36,null,null,null,null,null,null,""]
[37,null,null,null,null,null,null,""]
[38,null,null,null,null,null,null,""]
[39,null,null,null,null,null,null,""]
[40,null,null,null,null,null,null,""]
[41,null,null,null,null,null,null,""]
[42,null,null,null,null,null,null,""]
[43,null,null,null,null,null,null,""]
[44,null,null,null,null,null,null,""]
[45,null,null,null,null,null,null,""]
[46,null,null,null,null,null,null,""]
[47,null,null,null,null,null,null,""]
[48,null,null,null,null,null,null,""]
[49,null,null,null,null,null,null,""]
[50,null,null,null,null,null,null,""]
[51,null,null,null,null,null,null,""]

{"sheet":"1º SEMESTRE","index":1,"n_rows":68,"n_cols":59,"rows_kept":68,"cut":false,"hidden":false,"merged":[[6,58,7,58],[6,42,7,42],[6,43,7,43],[6,44,7,44],[6,45,7,45],[6,46,7,46],[6,47,7,47],[6,48,7,48],[6,49,7,49],[6,50,6,53],[6,54,6,57],[66,7,66,9],[67,7,67,9],[0,24,0,27],[6,19,6,22],[6,15,6,18],[6,8,7,8],[6,9,7,9],[6,10,7,10],[6,11,7,11],[6,12,7,12],[6,13,7,13],[6,14,7,14],[1,25,1,27],[2,25,2,27],[61,7,61,11],[62,10,62,12],[6,7,7,7],[3,25,3,27],[4,25,4,27],[64,7,64,9],[65,7,65,9],[62,7,63,9],[62,13,62,15],[6,23,7,23],[59,15,59,22],[8,1,8,5],[9,1,9,5],[10,1,10,5],[0,0,0,6],[1,0,1,6],[2,0,2,6],[3,1,3,6],[4,1,4,6],[6,0,7,0],[6,1,7,5],[6,6,7,6],[14,1,14,5],[15,1,15,5],[16,1,16,5],[11,1,11,5],[12,1,12,5],[13,1,13,5],[20,1,20,5],[21,1,21,5],[22,1,22,5],[17,1,17,5],[18,1,18,5],[19,1,19,5],[26,1,26,5],[27,1,27,5],[28,1,28,5],[23,1,23,5],[24,1,24,5],[25,1,25,5],[32,1,32,5],[33,1,33,5],[34,1,34,5],[29,1,29,5],[30,1,30,5],[31,1,31,5],[38,1,38,5],[39,1,39,5],[40,1,40,5],[35,1,35,5],[36,1,36,5],[37,1,37,5],[45,1,45,5],[46,1,46,5],[41,1,41,5],[42,1,42,5],[43,1,43,5],[44,1,44,5],[59,0,59,6],[56,1,56,5],[57,1,57,5],[58,1,58,5],[53,1,53,5],[54,1,54,5],[55,1,55,5],[50,1,50,5],[51,1,51,5],[52,1,52,5],[47,1,47,5],[48,1,48,5],[49,1,49,5]]}
["ESTADO DE MATO GROSSO DO SUL",null,null,null,null,null,null,null,null,null,null,null,null,null,null,null,null,null,null,null,null,null,null,null,"REFERÊNCIAS PARA AVALIAÇÃO DA QUESTÃO ESCRITA"]
["PREFEITURA MUNICIPAL DE CAMPO GRANDE",null,null,null,null,null,null,null,null,null,null,null,null,null,null,null,null,null,null,null,null,null,null,null,"A","Demonstra compreender o texto matemático;"]
["SECRETARIA MUNICIPAL DE EDUCAÇÃO",null,null,null,null,null,null,null,null,null,null,null,null,null,null,null,null,null,null,null,null,null,null,null,"B","Elabora uma estratégia coerente com a situação;"]
["ESCOLA:",{"$f":"IF(DADOS!B4=\"\",\"\",DADOS!B4)","v":""},null,null,null,null,null,null,null,null,null,null,null,null,null,null,null,null,null,null,null,null,null,null,"C","Demonstra que realizou a verificação do seu resultado;"]
["PROFESSOR:",{"$f":"IF(DADOS!B5=\"\",\"\",DADOS!B5)","v":""},null,null,null,null,null,null,null,null,null,null,null,null,null,null,null,null,null,null,null,null,null,null,"D","Apresenta uma solução coerente com o enunciado do problema."]
["TURMA",{"$f":"IF(DADOS!B6=\"\",\"\",DADOS!B6)","v":""},"PERÍODO ",{"$f":"IF(DADOS!D6=\"\",\"\",DADOS!D6)","v":""}]
["N. ","NOME",null,null,null,null,"IDADE","QUESTÃO 1","QUESTÃO 2","QUESTÃO 3","QUESTÃO 4","QUESTÃO 5","QUESTÃO 6","QUESTÃO 7","QUESTÃO 8","QUESTÃO 9",null,null,null,"QUESTÃO 10",null,null,null,"Situação",null,null,null,null,null,null,null,null,null,null,null,null,null,null,null,null,null,null,"QUESTÃO 1","QUESTÃO 2","QUESTÃO 3","QUESTÃO 4","QUESTÃO 5","QUESTÃO 6","QUESTÃO 7","QUESTÃO 8","QUESTÃO9",null,null,null,"QUESTÃO10",null,null,null,"TOTAL"]
[null,null,null,null,null,null,null,null,null,null,null,null,null,null,null,"A","B","C","D","A","B","C","D",null,null,null,null,null,null,null,null,null,null,null,null,null,null,null,null,null,null,null,null,null,null,null,null,null,null,null,"A","B","C","D","A","B","C","D"]
[{"$f":"ROW(B9)-8","v":1},{"$f":"IF(DADOS!B8=\"\",\"\",DADOS!B8)","v":""},null,null,null,null,{"$f":"IF(DADOS!B8=\"\",\"\",DADOS!H8)","v":""},null,null,null,null,null,null,null,null,null,null,null,null,null,null,null,null,{"$f":"IF(B9<>\"\",IF(BG9<=7,\"Regular\",IF(BG9>9,\"Avançado\",\"Proficiente\")),\"\")","v":""},null,null,null,null,null,null,null,null,null,null,null,null,null,null,null,null,null,null,{"$f":"IF(H9=\"C\",1,\"\")","v":""},{"$f":"IF(I9=\"B\",1,\"\")","v":""},{"$f":"IF(J9=\"A\",1,\"\")","v":""},{"$f":"IF(K9=\"D\",1,\"\")","v":""},{"$f":"IF(L9=\"A\",1,\"\")","v":""},{"$f":"IF(M9=\"D\",1,\"\")","v":""},{"$f":"IF(N9=\"C\",1,\"\")","v":""},{"$f":"IF(O9=\"A\",1,\"\")","v":""},{"$f":"IF(P9=\"SIM\",1,IF(P9=\"PARCIALMENTE\",0.5,0))","v":0},{"$f":"IF(Q9=\"SIM\",1,IF(Q9=\"PARCIALMENTE\",0.5,0))","v":0},0,0,0,0,0,0,{"$f":"(10*SUM(AQ9:BF9))/16","v":0}]
[{"$f":"ROW(B10)-7","v":3},{"$f":"IF(DADOS!B9=\"\",\"\",DADOS!B9)","v":""},null,null,null,null,{"$f":"IF(DADOS!B9=\"\",\"\",DADOS!H9)","v":""},null,null,null,null,null,null,null,null,null,null,null,null,null,null,null,null,"",null,null,null,null,null,null,null,null,null,null,null,null,null,null,null,null,null,null,null,null,null,null,null,null,null,null,{"$f":"IF(P10=\"SIM\",1,IF(P10=\"PARCIALMENTE\",0.5,0))","v":0},{"$f":"IF(Q10=\"SIM\",1,IF(Q10=\"PARCIALMENTE\",0.5,0))","v":0},{"$f":"IF(R10=\"SIM\",1,IF(R10=\"PARCIALMENTE\",0.5,0))","v":0},{"$f":"IF(S10=\"SIM\",1,IF(S10=\"PARCIALMENTE\",0.5,0))","v":0},{"$f":"IF(T10=\"SIM\",1,IF(T10=\"PARCIALMENTE\",0.5,0))","v":0},{"$f":"IF(U10=\"SIM\",1,IF(U10=\"PARCIALMENTE\",0.5,0))","v":0},{"$f":"IF(V10=\"SIM\",1,IF(V10=\"PARCIALMENTE\",0.5,0))","v":0},{"$f":"IF(W10=\"SIM\",1,IF(W10=\"PARCIALMENTE\",0.5,0))","v":0},{"$f":"(10*SUM(AQ10:BF10))/16","v":0}]
[4,{"$f":"IF(DADOS!B10=\"\",\"\",DADOS!B10)","v":""},null,null,null,null,{"$f":"IF(DADOS!B10=\"\",\"\",DADOS!H10)","v":""},null,null,null,null,null,null,null,null,null,null,null,null,null,null,null,null,"",null,null,null,null,null,null,null,null,null,null,null,null,null,null,null,null,null,null,null,null,null,null,null,null,null,null,0,0,0,0,0,0,0,0,0]
[5,{"$f":"IF(DADOS!B11=\"\",\"\",DADOS!B11)","v":""},null,null,null,null,{"$f":"IF(DADOS!B11=\"\",\"\",DADOS!H11)","v":""},null,null,null,null,null,null,null,null,null,null,null,null,null,null,null,null,"",null,null,null,null,null,null,null,null,null,null,null,null,null,null,null,null,null,null,null,null,null,null,null,null,null,null,0,0,0,0,0,0,0,0,0]
[6,{"$f":"IF(DADOS!B12=\"\",\"\",DADOS!B12)","v":""},null,null,null,null,{"$f":"IF(DADOS!B12=\"\",\"\",DADOS!H12)","v":""},null,null,null,null,null,null,null,null,null,null,null,null,null,null,null,null,"",null,null,null,null,null,null,null,null,null,null,null,null,null,null,null,null,null,null,null,null,null,null,null,null,null,null,0,0,0,0,0,0,0,0,0]
[7,{"$f":"IF(DADOS!B13=\"\",\"\",DADOS!B13)","v":""},null,null,null,null,{"$f":"IF(DADOS!B13=\"\",\"\",DADOS!H13)","v":""},null,null,null,null,null,null,null,null,null,null,null,null,null,null,null,null,"",null,null,null,null,null,null,null,null,null,null,null,null,null,null,null,null,null,null,null,null,null,null,null,null,null,null,0,0,0,0,0,0,0,0,0]
[8,{"$f":"IF(DADOS!B14=\"\",\"\",DADOS!B14)","v":""},null,null,null,null,{"$f":"IF(DADOS!B14=\"\",\"\",DADOS!H14)","v":""},null,null,null,null,null,null,null,null,null,null,null,null,null,null,null,null,"",null,null,null,null,null,null,null,null,null,null,null,null,null,null,null,null,null,null,null,null,null,null,null,null,null,null,0,0,0,0,0,0,0,0,0]
[9,{"$f":"IF(DADOS!B15=\"\",\"\",DADOS!B15)","v":""},null,null,null,null,{"$f":"IF(DADOS!B15=\"\",\"\",DADOS!H15)","v":""},null,null,null,null,null,null,null,null,null,null,null,null,null,null,null,null,"",null,null,null,null,null,null,null,null,null,null,null,null,null,null,null,null,null,null,null,null,null,null,null,null,null,null,0,0,0,0,0,0,0,0,0]
[10,{"$f":"IF(DADOS!B16=\"\",\"\",DADOS!B16)","v":""},null,null,null,null,{"$f":"IF(DADOS!B16=\"\",\"\",DADOS!H16)","v":""},null,null,null,null,null,null,null,null,null,null,null,null,null,null,null,null,"",null,null,null,null,null,null,null,null,null,null,null,null,null,null,null,null,null,null,null,null,null,null,null,null,null,null,0,0,0,0,0,0,0,0,0]
[11,{"$f":"IF(DADOS!B17=\"\",\"\",DADOS!B17)","v":""},null,null,null,null,{"$f":"IF(DADOS!B17=\"\",\"\",DADOS!H17)","v":""},null,null,null,null,null,null,null,null,null,null,null,null,null,null,null,null,"",null,null,null,null,null,null,null,null,null,null,null,null,null,null,null,null,null,null,null,null,null,null,null,null,null,null,0,0,0,0,0,0,0,0,0]
[12,{"$f":"IF(DADOS!B18=\"\",\"\",DADOS!B18)","v":""},null,null,null,null,{"$f":"IF(DADOS!B18=\"\",\"\",DADOS!H18)","v":""},null,null,null,null,null,null,null,null,null,null,null,null,null,null,null,null,"",null,null,null,null,null,null,null,null,null,null,null,null,null,null,null,null,null,null,null,null,null,null,null,null,null,null,0,0,0,0,0,0,0,0,0]
[13,{"$f":"IF(DADOS!B19=\"\",\"\",DADOS!B19)","v":""},null,null,null,null,{"$f":"IF(DADOS!B19=\"\",\"\",DADOS!H19)","v":""},null,null,null,null,null,null,null,null,null,null,null,null,null,null,null,null,"",null,null,null,null,null,null,null,null,null,null,null,null,null,null,null,null,null,null,null,null,null,null,null,null,null,null,0,0,0,0,0,0,0,0,0]
[14,{"$f":"IF(DADOS!B20=\"\",\"\",DADOS!B20)","v":""},null,null,null,null,{"$f":"IF(DADOS!B20=\"\",\"\",DADOS!H20)","v":""},null,null,null,null,null,null,null,null,null,null,null,null,null,null,null,null,"",null,null,null,null,null,null,null,null,null,null,null,null,null,null,null,null,null,null,null,null,null,null,null,null,null,null,0,0,0,0,0,0,0,0,0]
[15,{"$f":"IF(DADOS!B21=\"\",\"\",DADOS!B21)","v":""},null,null,null,null,{"$f":"IF(DADOS!B21=\"\",\"\",DADOS!H21)","v":""},null,null,null,null,null,null,null,null,null,null,null,null,null,null,null,null,"",null,null,null,null,null,null,null,null,null,null,null,null,null,null,null,null,null,null,null,null,null,null,null,null,null,null,0,0,0,0,0,0,0,0,0]
[16,{"$f":"IF(DADOS!B22=\"\",\"\",DADOS!B22)","v":""},null,null,null,null,{"$f":"IF(DADOS!B22=\"\",\"\",DADOS!H22)","v":""},null,null,null,null,null,null,null,null,null,null,null,null,null,null,null,null,"",null,null,null,null,null,null,null,null,null,null,null,null,null,null,null,null,null,null,null,null,null,null,null,null,null,null,0,0,0,0,0,0,0,0,0]
[17,{"$f":"IF(DADOS!B23=\"\",\"\",DADOS!B23)","v":""},null,null,null,null,{"$f":"IF(DADOS!B23=\"\",\"\",DADOS!H23)","v":""},null,null,null,null,null,null,null,null,null,null,null,null,null,null,null,null,"",null,null,null,null,null,null,null,null,null,null,null,null,null,null,null,null,null,null,null,null,null,null,null,null,null,null,0,0,0,0,0,0,0,0,0]
[18,{"$f":"IF(DADOS!B24=\"\",\"\",DADOS!B24)","v":""},null,null,null,null,{"$f":"IF(DADOS!B24=\"\",\"\",DADOS!H24)","v":""},null,null,null,null,null,null,null,null,null,null,null,null,null,null,null,null,"",null,null,null,null,null,null,null,null,null,null,null,null,null,null,null,null,null,null,null,null,null,null,null,null,null,null,0,0,0,0,0,0,0,0,0]
[19,{"$f":"IF(DADOS!B25=\"\",\"\",DADOS!B25)","v":""},null,null,null,null,{"$f":"IF(DADOS!B25=\"\",\"\",DADOS!H25)","v":""},null,null,null,null,null,null,null,null,null,null,null,null,null,null,null,null,"",null,null,null,null,null,null,null,null,null,null,null,null,null,null,null,null,null,null,null,null,null,null,null,null,null,null,0,0,0,0,0,0,0,0,0]
[20,{"$f":"IF(DADOS!B26=\"\",\"\",DADOS!B26)","v":""},null,null,null,null,{"$f":"IF(DADOS!B26=\"\",\"\",DADOS!H26)","v":""},null,null,null,null,null,null,null,null,null,null,null,null,null,null,null,null,"",null,null,null,null,null,null,null,null,null,null,null,null,null,null,null,null,null,null,null,null,null,null,null,null,null,null,0,0,0,0,0,0,0,0,0]
[21,{"$f":"IF(DADOS!B27=\"\",\"\",DADOS!B27)","v":""},null,null,null,null,{"$f":"IF(DADOS!B27=\"\",\"\",DADOS!H27)","v":""},null,null,null,null,null,null,null,null,null,null,null,null,null,null,null,null,"",null,null,null,null,null,null,null,null,null,null,null,null,null,null,null,null,null,null,null,null,null,null,null,null,null,null,0,0,0,0,0,0,0,0,0]
[22,{"$f":"IF(DADOS!B28=\"\",\"\",DADOS!B28)","v":""},null,null,null,null,{"$f":"IF(DADOS!B28=\"\",\"\",DADOS!H28)","v":""},null,null,null,null,null,null,null,null,null,null,null,null,null,null,null,null,"",null,null,null,null,null,null,null,null,null,null,null,null,null,null,null,null,null,null,null,null,null,null,null,null,null,null,0,0,0,0,0,0,0,0,0]
[23,{"$f":"IF(DADOS!B29=\"\",\"\",DADOS!B29)","v":""},null,null,null,null,{"$f":"IF(DADOS!B29=\"\",\"\",DADOS!H29)","v":""},null,null,null,null,null,null,null,null,null,null,null,null,null,null,null,null,"",null,null,null,null,null,null,null,null,null,null,null,null,null,null,null,null,null,null,null,null,null,null,null,null,null,null,0,0,0,0,0,0,0,0,0]
[24,{"$f":"IF(DADOS!B30=\"\",\"\",DADOS!B30)","v":""},null,null,null,null,{"$f":"IF(DADOS!B30=\"\",\"\",DADOS!H30)","v":""},null,null,null,null,null,null,null,null,null,null,null,null,null,null,null,null,"",null,null,null,null,null,null,null,null,null,null,null,null,null,null,null,null,null,null,null,null,null,null,null,null,null,null,0,0,0,0,0,0,0,0,0]
[25,{"$f":"IF(DADOS!B31=\"\",\"\",DADOS!B31)","v":""},null,null,null,null,{"$f":"IF(DADOS!B31=\"\",\"\",DADOS!H31)","v":""},null,null,null,null,null,null,null,null,null,null,null,null,null,null,null,null,"",null,null,null,null,null,null,null,null,null,null,null,null,null,null,null,null,null,null,null,null,null,null,null,null,null,null,0,0,0,0,0,0,0,0,0]
[26,{"$f":"IF(DADOS!B32=\"\",\"\",DADOS!B32)","v":""},null,null,null,null,{"$f":"IF(DADOS!B32=\"\",\"\",DADOS!H32)","v":""},null,null,null,null,null,null,null,null,null,null,null,null,null,null,null,null,"",null,null,null,null,null,null,null,null,null,null,null,null,null,null,null,null,null,null,null,null,null,null,null,null,null,null,0,0,0,0,0,0,0,0,0]
[27,{"$f":"IF(DADOS!B33=\"\",\"\",DADOS!B33)","v":""},null,null,null,null,{"$f":"IF(DADOS!B33=\"\",\"\",DADOS!H33)","v":""},null,null,null,null,null,null,null,null,null,null,null,null,null,null,null,null,"",null,null,null,null,null,null,null,null,null,null,null,null,null,null,null,null,null,null,null,null,null,null,null,null,null,null,0,0,0,0,0,0,0,0,0]
[28,{"$f":"IF(DADOS!B34=\"\",\"\",DADOS!B34)","v":""},null,null,null,null,{"$f":"IF(DADOS!B34=\"\",\"\",DADOS!H34)","v":""},null,null,null,null,null,null,null,null,null,null,null,null,null,null,null,null,"",null,null,null,null,null,null,null,null,null,null,null,null,null,null,null,null,null,null,null,null,null,null,null,null,null,null,0,0,0,0,0,0,0,0,0]
[29,{"$f":"IF(DADOS!B35=\"\",\"\",DADOS!B35)","v":""},null,null,null,null,{"$f":"IF(DADOS!B35=\"\",\"\",DADOS!H35)","v":""},null,null,null,null,null,null,null,null,null,null,null,null,null,null,null,null,"",null,null,null,null,null,null,null,null,null,null,null,null,null,null,null,null,null,null,null,null,null,null,null,null,null,null,0,0,0,0,0,0,0,0,0]
[30,{"$f":"IF(DADOS!B36=\"\",\"\",DADOS!B36)","v":""},null,null,null,null,{"$f":"IF(DADOS!B36=\"\",\"\",DADOS!H36)","v":""},null,null,null,null,null,null,null,null,null,null,null,null,null,null,null,null,"",null,null,null,null,null,null,null,null,null,null,null,null,null,null,null,null,null,null,null,null,null,null,null,null,null,null,0,0,0,0,0,0,0,0,0]
[31,{"$f":"IF(DADOS!B37=\"\",\"\",DADOS!B37)","v":""},null,null,null,null,{"$f":"IF(DADOS!B37=\"\",\"\",DADOS!H37)","v":""},null,null,null,null,null,null,null,null,null,null,null,null,null,null,null,null,"",null,null,null,null,null,null,null,null,null,null,null,null,null,null,null,null,null,null,null,null,null,null,null,null,null,null,0,0,0,0,0,0,0,0,0]
[32,{"$f":"IF(DADOS!B38=\"\",\"\",DADOS!B38)","v":""},null,null,null,null,{"$f":"IF(DADOS!B38=\"\",\"\",DADOS!H38)","v":""},null,null,null,null,null,null,null,null,null,null,null,null,null,null,null,null,"",null,null,null,null,null,null,null,null,null,null,null,null,null,null,null,null,null,null,null,null,null,null,null,null,null,null,0,0,0,0,0,0,0,0,0]
[33,{"$f":"IF(DADOS!B39=\"\",\"\",DADOS!B39)","v":""},null,null,null,null,{"$f":"IF(DADOS!B39=\"\",\"\",DADOS!H39)","v":""},null,null,null,null,null,null,null,null,null,null,null,null,null,null,null,null,"",null,null,null,null,null,null,null,null,null,null,null,null,null,null,null,null,null,null,null,null,null,null,null,null,null,null,0,0,0,0,0,0,0,0,0]
[34,{"$f":"IF(DADOS!B40=\"\",\"\",DADOS!B40)","v":""},null,null,null,null,{"$f":"IF(DADOS!B40=\"\",\"\",DADOS!H40)","v":""},null,null,null,null,null,null,null,null,null,null,null,null,null,null,null,null,{"$f":"IF(B41<>\"\",IF(BG41<=7,\"Regular\",IF(BG41>9,\"Avançado\",\"Proficiente\")),\"\")","v":""},null,null,null,null,null,null,null,null,null,null,null,null,null,null,null,null,null,null,null,null,null,null,null,null,null,null,0,0,0,0,0,0,0,0,0]
[35,{"$f":"IF(DADOS!B41=\"\",\"\",DADOS!B41)","v":""},null,null,null,null,{"$f":"IF(DADOS!B41=\"\",\"\",DADOS!H41)","v":""},null,null,null,null,null,null,null,null,null,null,null,null,null,null,null,null,"",null,null,null,null,null,null,null,null,null,null,null,null,null,null,null,null,null,null,null,null,null,null,null,null,null,null,0,0,0,0,0,0,0,0,0]
[36,{"$f":"IF(DADOS!B42=\"\",\"\",DADOS!B42)","v":""},null,null,null,null,{"$f":"IF(DADOS!B42=\"\",\"\",DADOS!H42)","v":""},null,null,null,null,null,null,null,null,null,null,null,null,null,null,null,null,"",null,null,null,null,null,null,null,null,null,null,null,null,null,null,null,null,null,null,null,null,null,null,null,null,null,null,0,0,0,0,0,0,0,0,0]
[37,{"$f":"IF(DADOS!B43=\"\",\"\",DADOS!B43)","v":""},null,null,null,null,{"$f":"IF(DADOS!B43=\"\",\"\",DADOS!H43)","v":""},null,null,null,null,null,null,null,null,null,null,null,null,null,null,null,null,"",null,null,null,null,null,null,null,null,null,null,null,null,null,null,null,null,null,null,null,null,null,null,null,null,null,null,0,0,0,0,0,0,0,0,0]
[38,{"$f":"IF(DADOS!B44=\"\",\"\",DADOS!B44)","v":""},null,null,null,null,{"$f":"IF(DADOS!B44=\"\",\"\",DADOS!H44)","v":""},null,null,null,null,null,null,null,null,null,null,null,null,null,null,null,null,"",null,null,null,null,null,null,null,null,null,null,null,null,null,null,null,null,null,null,null,null,null,null,null,null,null,null,0,0,0,0,0,0,0,0,0]
[39,{"$f":"IF(DADOS!B45=\"\",\"\",DADOS!B45)","v":""},null,null,null,null,{"$f":"IF(DADOS!B45=\"\",\"\",DADOS!H45)","v":""},null,null,null,null,null,null,null,null,null,null,null,null,null,null,null,null,"",null,null,null,null,null,null,null,null,null,null,null,null,null,null,null,null,null,null,null,null,null,null,null,null,null,null,0,0,0,0,0,0,0,0,0]
[40,{"$f":"IF(DADOS!B46=\"\",\"\",DADOS!B46)","v":""},null,null,null,null,{"$f":"IF(DADOS!B46=\"\",\"\",DADOS!H46)","v":""},null,null,null,null,null,null,null,null,null,null,null,null,null,null,null,null,"",null,null,null,null,null,null,null,null,null,null,null,null,null,null,null,null,null,null,null,null,null,null,null,null,null,null,0,0,0,0,0,0,0,0,0]
[41,{"$f":"IF(DADOS!B47=\"\",\"\",DADOS!B47)","v":""},null,null,null,null,{"$f":"IF(DADOS!B47=\"\",\"\",DADOS!H47)","v":""},null,null,null,null,null,null,null,null,null,null,null,null,null,null,null,null,"",null,null,null,null,null,null,null,null,null,null,null,null,null,null,null,null,null,null,null,null,null,null,null,null,null,null,0,0,0,0,0,0,0,0,0]
[42,{"$f":"IF(DADOS!B48=\"\",\"\",DADOS!B48)","v":""},null,null,null,null,{"$f":"IF(DADOS!B48=\"\",\"\",DADOS!H48)","v":""},null,null,null,null,null,null,null,null,null,null,null,null,null,null,null,null,"",null,null,null,null,null,null,null,null,null,null,null,null,null,null,null,null,null,null,null,null,null,null,null,null,null,null,0,0,0,0,0,0,0,0,0]
[43,{"$f":"IF(DADOS!B49=\"\",\"\",DADOS!B49)","v":""},null,null,null,null,{"$f":"IF(DADOS!B49=\"\",\"\",DADOS!H49)","v":""},null,null,null,null,null,null,null,null,null,null,null,null,null,null,null,null,"",null,null,null,null,null,null,null,null,null,null,null,null,null,null,null,null,null,null,null,null,null,null,null,null,null,null,0,0,0,0,0,0,0,0,0]
[44,{"$f":"IF(DADOS!B50=\"\",\"\",DADOS!B50)","v":""},null,null,null,null,{"$f":"IF(DADOS!B50=\"\",\"\",DADOS!H50)","v":""},null,null,null,null,null,null,null,null,null,null,null,null,null,null,null,null,"",null,null,null,null,null,null,null,null,null,null,null,null,null,null,null,null,null,null,null,null,null,null,null,null,null,null,0,0,0,0,0,0,0,0,0]
[45,{"$f":"IF(DADOS!B51=\"\",\"\",DADOS!B51)","v":""},null,null,null,null,{"$f":"IF(DADOS!B51=\"\",\"\",DADOS!H51)","v":""},null,null,null,null,null,null,null,null,null,null,null,null,null,null,null,null,"",null,null,null,null,null,null,null,null,null,null,null,null,null,null,null,null,null,null,null,null,null,null,null,null,null,null,0,0,0,0,0,0,0,0,0]
[46,{"$f":"IF(DADOS!B52=\"\",\"\",DADOS!B52)","v":""},null,null,null,null,{"$f":"IF(DADOS!B52=\"\",\"\",DADOS!H52)","v":""},null,null,null,null,null,null,null,null,null,null,null,null,null,null,null,null,"",null,null,null,null,null,null,null,null,null,null,null,null,null,null,null,null,null,null,null,null,null,null,null,null,null,null,0,0,0,0,0,0,0,0,0]
[47,{"$f":"IF(DADOS!B53=\"\",\"\",DADOS!B53)","v":""},null,null,null,null,{"$f":"IF(DADOS!B53=\"\",\"\",DADOS!H53)","v":""},null,null,null,null,null,null,null,null,null,null,null,null,null,null,null,null,"",null,null,null,null,null,null,null,null,null,null,null,null,null,null,null,null,null,null,null,null,null,null,null,null,null,null,0,0,0,0,0,0,0,0,0]
[48,{"$f":"IF(DADOS!B54=\"\",\"\",DADOS!B54)","v":""},null,null,null,null,{"$f":"IF(DADOS!B54=\"\",\"\",DADOS!H54)","v":""},null,null,null,null,null,null,null,null,null,null,null,null,null,null,null,null,"",null,null,null,null,null,null,null,null,null,null,null,null,null,null,null,null,null,null,null,null,null,null,null,null,null,null,0,0,0,0,0,0,0,0,0]
[49,{"$f":"IF(DADOS!B55=\"\",\"\",DADOS!B55)","v":""},null,null,null,null,{"$f":"IF(DADOS!B55=\"\",\"\",DADOS!H55)","v":""},null,null,null,null,null,null,null,null,null,null,null,null,null,null,null,null,"",null,null,null,null,null,null,null,null,null,null,null,null,null,null,null,null,null,null,null,null,null,null,null,null,null,null,0,0,0,0,0,0,0,0,0]
[50,{"$f":"IF(DADOS!B56=\"\",\"\",DADOS!B56)","v":""},null,null,null,null,{"$f":"IF(DADOS!B56=\"\",\"\",DADOS!H56)","v":""},null,null,null,null,null,null,null,null,null,null,null,null,null,null,null,null,"",null,null,null,null,null,null,null,null,null,null,null,null,null,null,null,null,null,null,null,null,null,null,null,null,null,null,0,0,0,0,0,0,0,0,0]
[51,{"$f":"IF(DADOS!B57=\"\",\"\",DADOS!B57)","v":""},null,null,null,null,{"$f":"IF(DADOS!B57=\"\",\"\",DADOS!H57)","v":""},null,null,null,null,null,null,null,null,null,null,null,null,null,null,null,null,"",null,null,null,null,null,null,null,null,null,null,null,null,null,null,null,null,null,null,null,null,null,null,null,null,null,null,0,0,0,0,0,0,0,0,0]
[52,{"$f":"IF(DADOS!B58=\"\",\"\",DADOS!B58)","v":""},null,null,null,null,{"$f":"IF(DADOS!B58=\"\",\"\",DADOS!H58)","v":""},null,null,null,null,null,null,null,null,null,null,null,null,null,null,null,null,"",null,null,null,null,null,null,null,null,null,null,null,null,null,null,null,null,null,null,null,null,null,null,null,null,null,null,0,0,0,0,0,0,0,0,0]
[null,null,null,null,null,null,null,{"$f":"COUNTIF(H9:H59,\"C\")","v":0},{"$f":"COUNTIF(I9:I59,\"B\")","v":0},{"$f":"COUNTIF(J9:J59,\"A\")","v":0},{"$f":"COUNTIF(K9:K59,\"D\")","v":0},{"$f":"COUNTIF(L9:L59,\"A\")","v":0},{"$f":"COUNTIF(M9:M59,\"D\")","v":0},{"$f":"COUNTIF(N9:N59,\"C\")","v":0},{"$f":"COUNTIF(O9:O59,\"A\")","v":0}]
[]
[null,null,null,null,null,null,null,"RESUMO"]
[null,null,null,null,null,null,null,"CRITÉRIOS",null,null,{"$f":"P7","v":"QUESTÃO 9"},null,null,{"$f":"T7","v":"QUESTÃO 10"}]
[null,null,null,null,null,null,null,null,null,null,"SIM","PARCIALMENTE","NÃO","SIM","PARCIALMENTE","NÃO"]
[null,null,null,null,null,null,null,"Demonstra compreender o texto matemático;",null,null,{"$f":"COUNTIF($P$9:$P$59,K$64)","v":0},{"$f":"COUNTIF($P$9:$P$59,L$64)","v":0},{"$f":"COUNTIF($P$9:$P$59,M$64)","v":0},{"$f":"COUNTIF($T$9:$T$59,N$64)","v":0},{"$f":"COUNTIF($T$9:$T$59,O$64)","v":0},0]
[null,null,null,null,null,null,null,"Elabora uma estratégia coerente com a situação;",null,null,{"$f":"COUNTIF($Q$9:$Q$59,K$64)","v":0},{"$f":"COUNTIF($Q$9:$Q$59,L$64)","v":0},{"$f":"COUNTIF($Q$9:$Q$59,M$64)","v":0},{"$f":"COUNTIF($U$9:$U$59,N$64)","v":0},{"$f":"COUNTIF($U$9:$U$59,O$64)","v":0},0]
[null,null,null,null,null,null,null,"Demonstra que realizou a verificação do seu resultado;",null,null,{"$f":"COUNTIF($R$9:$R$59,K$64)","v":0},{"$f":"COUNTIF($R$9:$R$59,L$64)","v":0},{"$f":"COUNTIF($R$9:$R$59,M$64)","v":0},{"$f":"COUNTIF($V$9:$V$59,N$64)","v":0},{"$f":"COUNTIF($V$9:$V$59,O$64)","v":0},0]
[null,null,null,null,null,null,null,"Apresenta uma solução coerente com o enunciado do problema.",null,null,{"$f":"COUNTIF($S$9:$S$59,K$64)","v":0},{"$f":"COUNTIF($S$9:$S$59,L$64)","v":0},{"$f":"COUNTIF($S$9:$S$59,M$64)","v":0},{"$f":"COUNTIF($W$9:$W$59,N$64)","v":0},{"$f":"COUNTIF($W$9:$W$59,O$64)","v":0},0]

{"sheet":"GRÁFICOS","index":2,"n_rows":24,"n_cols":10,"rows_kept":24,"cut":false,"hidden":false,"merged":[[3,0,3,7],[3,9,3,16],[23,0,23,7],[23,9,23,16],[0,0,0,20],[1,0,1,20],[2,0,2,20]]}
["ESTADO DE MATO GROSSO DO SUL"]
["PREFEITURA MUNICIPAL DE CAMPO GRANDE"]
["SECRETARIA MUNICIPAL DE EDUCAÇÃO"]
["QUESTÕES OBJETIVAS",null,null,null,null,null,null,null,null,"QUESTÃO 9"]
[]
[]
[]
[]
[]
[]
[]
[]
[]
[]
[]
[]
[]
[]
[]
[]
[]
[]
[]
["QUESTÃO 10"]